lending/lending_fUSD_20250808
["ID","MTS","AMOUNT","RATE_DAILY","PERIOD"]
[377904314,1754611290567,150.0,0.00029513,120]
[377904316,1754611395478,511.0,0.00017284,2]
[377904317,1754611521923,150.0,0.0001726,2]
[377904318,1754611522502,150.0,0.000179,2]
[377904319,1754611522575,150.0,0.0001726,2]
[377904320,1754611522665,150.0,0.0001726,2]
[377904322,1754611526889,154.70923407,0.0001726,2]
[377904323,1754611529217,155.87469046,0.0001726,2]
[377904324,1754611530925,150.0,0.0001726,2]
[377904325,1754611532266,152.58988876,0.0001726,2]
[377904326,1754611536139,150.79875526,0.0001726,2]
[377904327,1754611542107,166.02437429,0.0001726,2]
[377904328,1754611542193,154.10305299,0.0001726,2]
[377904329,1754611544090,304.34,0.00015068,2]
[377904330,1754611544310,304.34,0.00016668,2]
[377904331,1754611650555,150.0,0.00026326,120]
[377904332,1754611681026,175.0,0.00017989,7]
[377904339,1754611831966,-666.0,0.00018162,3]
[377904340,1754611831975,-35.0,0.00018163,4]
[377904341,1754611831986,-838.63530222,0.00018163,4]
[377904342,1754611831998,-126.36469778,0.00018163,4]
[377904343,1754611832007,-250.0,0.00018163,2]
[377904344,1754611832017,-150.0,0.00018165,2]
[377904345,1754611832028,-1000.0,0.00018181,4]
[377904346,1754611832038,-150.0,0.00018188,2]
[377904347,1754611832047,-166.68,0.00018207,2]
[377904348,1754611832056,-150.0,0.00018219,2]
[377904349,1754611832066,-1000.0,0.00018225,2]
[377904350,1754611832075,-267.46074303,0.00018241,2]
[377904351,1754611832085,-1901.0,0.00018252,2]
[377904352,1754611832095,-304.34,0.00018267,2]
[377904353,1754611832105,-151.72,0.00018275,2]
[377904354,1754611832115,-150.0,0.00018539,2]
[377904355,1754611832124,-400.0,0.000186,6]
[377904356,1754611832133,-1200.0,0.00018699,2]
[377904357,1754611832143,-800.0,0.000187,6]
[377904358,1754611832153,-311.29722507,0.00018794,2]
[377904359,1754611832163,-796.49,0.000188,2]
[377904360,1754611832174,-410.03,0.000188,2]
[377904361,1754611832184,-796.49,0.000188,2]
[377904362,1754611832195,-1200.0,0.000188,6]
[377904363,1754611832206,-1700.0,0.000189,6]
[377904364,1754611832217,-600.0,0.00018944,2]
[377904365,1754611832226,-515.87,0.00018944,2]
[377904366,1754611832236,-150.0,0.00019,2]
[377904367,1754611832245,-501.69,0.00019041,2]
[377904368,1754611832255,-600.0,0.00019067,2]
[377904369,1754611832265,-500.0,0.00019067,2]
[377904370,1754611832276,-160.0,0.00019067,2]
[377904371,1754611832285,-261.956,0.00019078,2]
[377904372,1754611832294,-9521.25228728,0.00019078,2]
[377904373,1754611832305,-4442.29191097,0.00019078,2]
[377904374,1754611832315,-258.60238803,0.00019078,2]
[377904375,1754611832324,-162.37178663,0.00019078,2]
[377904376,1754611832334,-2545.8946,0.00019078,2]
[377904377,1754611832343,-821.0397,0.00019078,2]
[377904378,1754611832353,-166.68,0.00019117,2]
[377904379,1754611832363,-500.0,0.00019122,2]
[377904380,1754611832372,-369.18,0.00019168,2]
[377904381,1754611832382,-4442.29191093,0.00019169,2]
[377904383,1754611832682,-9521.2522872,0.0001917,2]
[377904384,1754611832701,-500.0,0.00019173,2]
[377904386,1754611832711,-500.0,0.00019173,2]
[377904387,1754611832720,-500.0,0.00019173,2]
[377904388,1754611832730,-470.77143199,0.00019173,2]
[377904389,1754611832739,-500.0,0.00019173,2]
[377904390,1754611832749,-457.55740054,0.00019177,2]
[377904391,1754611832758,-211.58213282,0.00019177,2]
[377904392,1754611832768,-500.0,0.00019177,2]
[377904393,1754611832778,-223.56819057,0.00019177,2]
[377904394,1754611832787,-500.0,0.00019177,2]
[377904395,1754611832797,-500.0,0.00019177,2]
[377904396,1754611832807,-500.0,0.00019177,2]
[377904397,1754611832817,-500.0,0.00019177,2]
[377904398,1754611832826,-250.0,0.00019177,2]
[377904399,1754611832835,-291.97373716,0.00019177,2]
[377904400,1754611832845,-500.0,0.00019177,2]
[377904401,1754611832854,-500.0,0.00019177,2]
[377904402,1754611832864,-500.0,0.00019177,2]
[377904403,1754611832874,-408.42844686,0.00019177,2]
[377904404,1754611832884,-500.0,0.00019177,2]
[377904405,1754611832894,-500.0,0.00019177,2]
[377904406,1754611832904,-500.0,0.00019177,2]
[377904407,1754611832914,-500.0,0.00019177,2]
[377904408,1754611832924,-400.0,0.00019178,2]
[377904409,1754611832933,-400.0,0.00019178,2]
[377904410,1754611832942,-400.0,0.00019178,2]
[377904411,1754611832952,-340.0,0.00019178,2]
[377904412,1754611832961,-400.0,0.00019178,2]
[377904413,1754611832970,-1215.33,0.00019178,2]
[377904414,1754611832979,-400.0,0.00019178,2]
[377904415,1754611832989,-400.0,0.00019178,2]
[377904416,1754611832998,-661.12,0.00019178,2]
[377904417,1754611833008,-583.18,0.00019178,2]
[377904418,1754611833017,-400.0,0.00019178,2]
[377904419,1754611833027,-1248.38,0.00019178,2]
[377904420,1754611833036,-838.65,0.00019178,2]
[377904421,1754611833046,-634.5,0.00019178,2]
[377904422,1754611833055,-1391.92,0.00019178,2]
[377904423,1754611833065,-533.79,0.00019178,2]
[377904424,1754611833075,-400.0,0.00019178,2]
[377904425,1754611833085,-568.66,0.00019178,2]
[377904426,1754611833095,-1502.94,0.00019178,2]
[377904427,1754611833104,-400.0,0.00019178,2]
[377904428,1754611833113,-472.91,0.00019178,2]
[377904429,1754611833123,-400.0,0.00019178,2]
[377904430,1754611833134,-400.0,0.00019178,2]
[377904431,1754611833143,-400.0,0.00019178,2]
[377904432,1754611833153,-400.0,0.00019178,2]
[377904433,1754611833163,-400.0,0.00019178,2]
[377904434,1754611833173,-1157.28,0.00019178,2]
[377904435,1754611833184,-400.0,0.00019178,2]
[377904436,1754611833194,-445.14,0.00019178,2]
[377904437,1754611833204,-400.0,0.00019178,2]
[377904438,1754611833214,-487.75,0.00019178,2]
[377904439,1754611833224,-400.0,0.00019178,2]
[377904440,1754611833234,-400.0,0.00019178,2]
[377904441,1754611833247,-400.0,0.00019178,2]
[377904442,1754611833256,-400.0,0.00019178,2]
[377904443,1754611833266,-400.0,0.00019178,2]
[377904444,1754611833276,-400.0,0.00019178,2]
[377904445,1754611833288,-1182.84,0.00019178,2]
[377904446,1754611833298,-368.84264811,0.00019178,2]
[377904447,1754611833308,-400.0,0.00019178,2]
[377904448,1754611833318,-1322.74,0.00019178,2]
[377904449,1754611833328,-400.0,0.00019178,2]
[377904450,1754611833338,-463.79,0.00019178,2]
[377904451,1754611833348,-232.47663764,0.00019178,2]
[377904452,1754611833358,-400.0,0.00019178,2]
[377904453,1754611833368,-400.0,0.00019178,2]
[377904454,1754611833377,-793.22,0.00019178,2]
[377904455,1754611833388,-400.0,0.00019178,2]
[377904456,1754611833398,-400.0,0.00019178,2]
[377904457,1754611833408,-1169.08,0.00019178,2]
[377904458,1754611833417,-669.69,0.00019178,2]
[377904459,1754611833427,-400.0,0.00019178,2]
[377904460,1754611833437,-400.0,0.00019178,2]
[377904461,1754611833448,-1385.95,0.00019178,2]
[377904462,1754611833459,-697.76,0.00019178,2]
[377904463,1754611833469,-400.0,0.00019178,2]
[377904464,1754611833480,-400.0,0.00019178,2]
[377904465,1754611833492,-400.0,0.00019178,2]
[377904466,1754611833502,-471.12,0.00019178,2]
[377904467,1754611833513,-390.07301274,0.00019178,2]
[377904468,1754611833523,-1546.26,0.00019178,2]
[377904469,1754611833534,-302.78711782,0.00019178,2]
[377904470,1754611833544,-400.0,0.00019178,2]
[377904471,1754611833554,-400.0,0.00019178,2]
[377904472,1754611833565,-438.59,0.00019178,2]
[377904473,1754611833575,-473.89,0.00019178,2]
[377904474,1754611833585,-311.74988487,0.00019178,2]
[377904475,1754611833595,-1112.25,0.00019178,2]
[377904476,1754611833606,-1275.58,0.00019178,2]
[377904477,1754611833616,-400.0,0.00019178,2]
[377904478,1754611833627,-400.0,0.00019178,2]
[377904479,1754611833637,-738.27,0.00019178,2]
[377904480,1754611833648,-400.0,0.00019178,2]
[377904481,1754611833658,-400.0,0.00019178,2]
[377904482,1754611833667,-918.23,0.00019178,2]
[377904483,1754611833677,-489.56,0.00019178,2]
[377904484,1754611833687,-400.0,0.00019178,2]
[377904485,1754611833696,-661.72,0.00019178,2]
[377904486,1754611833707,-400.0,0.00019178,2]
[377904487,1754611833716,-400.0,0.00019178,2]
[377904488,1754611833726,-467.42158731,0.00019178,2]
[377904489,1754611833737,-246.87377759,0.00019178,2]
[377904490,1754611833748,-400.0,0.00019178,2]
[377904491,1754611833758,-400.0,0.00019178,2]
[377904492,1754611833768,-233.86157212,0.00019178,2]
[377904493,1754611833778,-400.0,0.00019178,2]
[377904494,1754611833788,-504.67,0.00019178,2]
[377904495,1754611833798,-405.04,0.00019178,2]
[377904496,1754611833808,-400.0,0.00019178,2]
[377904497,1754611833818,-431.89,0.00019178,2]
[377904498,1754611833828,-592.58,0.00019178,2]
[377904499,1754611833839,-400.0,0.00019178,2]
[377904500,1754611833850,-465.49,0.00019178,2]
[377904501,1754611833860,-503.95,0.00019178,2]
[377904502,1754611834076,-400.0,0.00019178,2]
[377904503,1754611834086,-400.0,0.00019178,2]
[377904504,1754611834097,-792.16,0.00019178,2]
[377904505,1754611834106,-400.0,0.00019178,2]
[377904506,1754611834117,-400.0,0.00019178,2]
[377904507,1754611834128,-400.0,0.00019178,2]
[377904508,1754611834139,-400.0,0.00019178,2]
[377904509,1754611834149,-400.0,0.00019178,2]
[377904510,1754611834159,-441.35,0.00019178,2]
[377904511,1754611834172,-1076.09,0.00019178,2]
[377904512,1754611834182,-918.33,0.00019178,2]
[377904513,1754611834193,-400.0,0.00019178,2]
[377904514,1754611834203,-400.0,0.00019178,2]
[377904515,1754611834212,-400.0,0.00019178,2]
[377904516,1754611834222,-400.0,0.00019178,2]
[377904517,1754611834231,-400.0,0.00019178,2]
[377904518,1754611834241,-400.0,0.00019178,2]
[377904519,1754611834250,-752.03,0.00019178,2]
[377904520,1754611834260,-189.8621451,0.00019178,2]
[377904521,1754611834270,-1404.27,0.00019178,2]
[377904522,1754611834281,-400.0,0.00019178,2]
[377904523,1754611834291,-400.0,0.00019178,2]
[377904524,1754611834301,-400.0,0.00019178,2]
[377904525,1754611834310,-529.88,0.00019178,2]
[377904526,1754611834320,-1257.73,0.00019178,2]
[377904527,1754611834329,-400.0,0.00019178,2]
[377904528,1754611834338,-400.0,0.00019178,2]
[377904529,1754611834348,-400.0,0.00019178,2]
[377904530,1754611834358,-400.0,0.00019178,2]
[377904531,1754611834367,-400.0,0.00019178,2]
[377904532,1754611834378,-400.0,0.00019178,2]
[377904533,1754611834388,-400.0,0.00019178,2]
[377904534,1754611834398,-400.0,0.00019178,2]
[377904535,1754611834407,-505.21,0.00019178,2]
[377904536,1754611834417,-400.0,0.00019178,2]
[377904537,1754611834426,-400.0,0.00019178,2]
[377904538,1754611834436,-883.74,0.00019178,2]
[377904539,1754611834445,-400.0,0.00019178,2]
[377904540,1754611834455,-400.0,0.00019178,2]
[377904541,1754611834465,-400.0,0.00019178,2]
[377904542,1754611834475,-400.0,0.00019178,2]
[377904543,1754611834486,-400.0,0.00019178,2]
[377904544,1754611834496,-400.0,0.00019178,2]
[377904545,1754611834505,-967.6,0.00019178,2]
[377904546,1754611834515,-400.0,0.00019178,2]
[377904547,1754611834526,-400.0,0.00019178,2]
[377904548,1754611834535,-606.0,0.00019178,2]
[377904549,1754611834545,-400.0,0.00019178,2]
[377904550,1754611834554,-400.0,0.00019178,2]
[377904551,1754611834565,-589.91,0.00019178,2]
[377904552,1754611834575,-400.0,0.00019178,2]
[377904553,1754611834585,-1439.72,0.00019178,2]
[377904554,1754611834595,-400.0,0.00019178,2]
[377904555,1754611834604,-400.0,0.00019178,2]
[377904556,1754611834615,-1230.02,0.00019178,2]
[377904557,1754611834624,-400.0,0.00019178,2]
[377904558,1754611834635,-400.0,0.00019178,2]
[377904559,1754611834644,-1416.61,0.00019178,2]
[377904560,1754611834654,-400.0,0.00019178,2]
[377904561,1754611834664,-1384.12,0.00019178,2]
[377904562,1754611834674,-400.0,0.00019178,2]
[377904563,1754611834683,-864.35,0.00019178,2]
[377904564,1754611834693,-400.0,0.00019178,2]
[377904565,1754611834702,-595.33,0.00019178,2]
[377904566,1754611834712,-400.0,0.00019178,2]
[377904567,1754611834721,-713.49,0.00019178,2]
[377904568,1754611834731,-600.03,0.00019178,2]
[377904569,1754611834741,-1027.75,0.00019178,2]
[377904570,1754611834750,-400.0,0.00019178,2]
[377904571,1754611834760,-400.0,0.00019178,2]
[377904572,1754611834770,-952.28,0.00019178,2]
[377904573,1754611834780,-899.18,0.00019178,2]
[377904574,1754611834790,-1230.78,0.00019178,2]
[377904575,1754611834799,-474.01,0.00019178,2]
[377904576,1754611834809,-1296.24,0.00019178,2]
[377904577,1754611834819,-400.0,0.00019178,2]
[377904578,1754611834828,-400.0,0.00019178,2]
[377904579,1754611834838,-464.5,0.00019178,2]
[377904580,1754611834847,-636.87,0.00019178,2]
[377904581,1754611834858,-422.68,0.00019178,2]
[377904582,1754611834869,-681.22,0.00019178,2]
[377904583,1754611834881,-400.0,0.00019178,2]
[377904584,1754611834891,-1347.87,0.00019178,2]
[377904585,1754611834901,-867.32,0.00019178,2]
[377904586,1754611834912,-400.0,0.00019178,2]
[377904587,1754611834921,-1178.07,0.00019178,2]
[377904588,1754611834931,-1177.26,0.00019178,2]
[377904589,1754611834941,-400.0,0.00019178,2]
[377904590,1754611834951,-400.0,0.00019178,2]
[377904591,1754611834962,-400.0,0.00019178,2]
[377904592,1754611834971,-400.0,0.00019178,2]
[377904593,1754611834981,-2309.19,0.00019178,2]
[377904594,1754611834991,-856.27,0.00019178,2]
[377904595,1754611835003,-661.7,0.00019178,2]
[377904596,1754611835014,-400.0,0.00019178,2]
[377904597,1754611835024,-400.0,0.00019178,2]
[377904598,1754611835035,-400.0,0.00019178,2]
[377904599,1754611835048,-400.0,0.00019178,2]
[377904600,1754611835059,-835.5,0.00019178,2]
[377904601,1754611835070,-400.0,0.00019178,2]
[377904602,1754611835079,-458.13420901,0.00019178,2]
[377904603,1754611835106,-645.12579099,0.00019178,2]
[377904604,1754611835116,-400.0,0.00019178,2]
[377904605,1754611835125,-524.27,0.00019178,2]
[377904606,1754611835135,-413.48,0.00019178,2]
[377904607,1754611835146,-584.47,0.00019178,2]
[377904608,1754611835158,-952.81,0.00019178,2]
[377904609,1754611835171,-501.4,0.00019178,2]
[377904610,1754611835183,-837.5,0.00019178,2]
[377904611,1754611835194,-510.0,0.00019178,2]
[377904612,1754611835205,-400.0,0.00019178,2]
[377904613,1754611835214,-513.85,0.00019178,2]
[377904614,1754611835224,-400.0,0.00019178,2]
[377904615,1754611835235,-410.48,0.00019178,2]
[377904616,1754611835245,-1288.62,0.00019178,2]
[377904617,1754611835256,-400.0,0.00019178,2]
[377904618,1754611835266,-411.48,0.00019178,2]
[377904619,1754611835276,-651.95,0.00019178,2]
[377904620,1754611835287,-400.0,0.00019178,2]
[377904621,1754611835297,-400.0,0.00019178,2]
[377904622,1754611835306,-1038.31,0.00019178,2]
[377904623,1754611835316,-400.0,0.00019178,2]
[377904624,1754611835325,-209.25303761,0.00019178,2]
[377904625,1754611835335,-400.0,0.00019178,2]
[377904626,1754611835344,-400.0,0.00019178,2]
[377904627,1754611835354,-400.0,0.00019178,2]
[377904628,1754611835364,-400.0,0.00019178,2]
[377904629,1754611835375,-400.0,0.00019178,2]
[377904630,1754611835386,-400.0,0.00019178,2]
[377904631,1754611835396,-912.38,0.00019178,2]
[377904632,1754611835407,-423.7,0.00019178,2]
[377904633,1754611835416,-400.0,0.00019178,2]
[377904634,1754611835426,-400.0,0.00019178,2]
[377904635,1754611835436,-1421.43,0.00019178,2]
[377904636,1754611835446,-400.0,0.00019178,2]
[377904637,1754611835455,-1061.73,0.00019178,2]
[377904638,1754611835464,-473.34,0.00019178,2]
[377904639,1754611835474,-400.0,0.00019178,2]
[377904640,1754611835486,-400.0,0.00019178,2]
[377904641,1754611835495,-400.0,0.00019178,2]
[377904642,1754611835504,-589.63,0.00019178,2]
[377904643,1754611835513,-400.0,0.00019178,2]
[377904644,1754611835523,-400.0,0.00019178,2]
[377904645,1754611835532,-400.0,0.00019178,2]
[377904646,1754611835541,-1161.69,0.00019178,2]
[377904647,1754611835551,-1255.22,0.00019178,2]
[377904648,1754611835563,-400.0,0.00019178,2]
[377904649,1754611835573,-752.4,0.00019178,2]
[377904650,1754611835582,-847.59,0.00019178,2]
[377904651,1754611835592,-400.0,0.00019178,2]
[377904652,1754611835602,-400.0,0.00019178,2]
[377904653,1754611835611,-692.97,0.00019178,2]
[377904654,1754611835621,-400.0,0.00019178,2]
[377904655,1754611835631,-2005.39,0.00019178,2]
[377904656,1754611835641,-400.0,0.00019178,2]
[377904657,1754611835650,-1906.2,0.00019178,2]
[377904658,1754611835660,-1057.93,0.00019178,2]
[377904659,1754611835669,-459.49,0.00019178,2]
[377904660,1754611835679,-594.05,0.00019178,2]
[377904661,1754611835689,-400.0,0.00019178,2]
[377904662,1754611835698,-400.0,0.00019178,2]
[377904663,1754611835708,-407.33,0.00019178,2]
[377904664,1754611835718,-1117.11,0.00019178,2]
[377904665,1754611835727,-596.67,0.00019178,2]
[377904666,1754611835736,-1346.46,0.00019178,2]
[377904667,1754611835746,-1383.81,0.00019178,2]
[377904668,1754611835755,-400.0,0.00019178,2]
[377904669,1754611835765,-452.78,0.00019178,2]
[377904670,1754611835774,-1263.32,0.00019178,2]
[377904671,1754611835785,-400.0,0.00019178,2]
[377904672,1754611835795,-400.0,0.00019178,2]
[377904673,1754611835804,-400.0,0.00019178,2]
[377904674,1754611835814,-400.0,0.00019178,2]
[377904675,1754611835823,-469.4,0.00019178,2]
[377904676,1754611835833,-566.42,0.00019178,2]
[377904677,1754611835842,-600.78,0.00019178,2]
[377904678,1754611835851,-2197.61,0.00019178,2]
[377904679,1754611835861,-400.0,0.00019178,2]
[377904680,1754611835871,-400.0,0.00019178,2]
[377904681,1754611835880,-1097.74,0.00019178,2]
[377904682,1754611835890,-400.0,0.00019178,2]
[377904683,1754611835899,-1841.25,0.00019178,2]
[377904684,1754611835908,-415.41,0.00019178,2]
[377904685,1754611835918,-400.0,0.00019178,2]
[377904686,1754611835927,-1082.7,0.00019178,2]
[377904687,1754611835937,-400.0,0.00019178,2]
[377904688,1754611835946,-1228.96,0.00019178,2]
[377904689,1754611835955,-400.0,0.00019178,2]
[377904690,1754611835965,-449.3,0.00019178,2]
[377904691,1754611835974,-575.88,0.00019178,2]
[377904692,1754611835983,-501.61,0.00019178,2]
[377904693,1754611835993,-1217.12,0.00019178,2]
[377904694,1754611836002,-400.0,0.00019178,2]
[377904695,1754611836011,-160.60861122,0.00019178,2]
[377904696,1754611836021,-400.0,0.00019178,2]
[377904697,1754611836030,-400.0,0.00019178,2]
[377904698,1754611836039,-942.74,0.00019178,2]
[377904699,1754611836049,-761.01,0.00019178,2]
[377904700,1754611836059,-1918.56,0.00019178,2]
[377904701,1754611836068,-400.0,0.00019178,2]
[377904702,1754611836077,-745.43,0.00019178,2]
[377904703,1754611836087,-519.34,0.00019178,2]
[377904704,1754611836096,-1901.3,0.00019178,2]
[377904705,1754611836106,-428.64294187,0.00019178,2]
[377904706,1754611836115,-1007.54,0.00019178,2]
[377904707,1754611836125,-1399.15,0.00019178,2]
[377904708,1754611836136,-400.0,0.00019178,2]
[377904709,1754611836145,-400.0,0.00019178,2]
[377904710,1754611836155,-2452.95,0.00019178,2]
[377904711,1754611836164,-400.0,0.00019178,2]
[377904712,1754611836174,-400.0,0.00019178,2]
[377904713,1754611836183,-1102.35,0.00019178,2]
[377904714,1754611836193,-1610.39,0.00019178,2]
[377904715,1754611836203,-400.0,0.00019178,2]
[377904716,1754611836213,-400.0,0.00019178,2]
[377904717,1754611836223,-1278.44,0.00019178,2]
[377904718,1754611836231,-1586.48,0.00019178,2]
[377904719,1754611836241,-1041.95,0.00019178,2]
[377904720,1754611836251,-400.0,0.00019178,2]
[377904721,1754611836260,-410.17,0.00019178,2]
[377904722,1754611836269,-400.0,0.00019178,2]
[377904723,1754611836279,-602.1,0.00019178,2]
[377904724,1754611836288,-968.19,0.00019178,2]
[377904725,1754611836298,-400.0,0.00019178,2]
[377904726,1754611836307,-400.0,0.00019178,2]
[377904727,1754611836317,-400.0,0.00019178,2]
[377904728,1754611836326,-400.0,0.00019178,2]
[377904729,1754611836336,-947.58,0.00019178,2]
[377904730,1754611836345,-400.0,0.00019178,2]
[377904731,1754611836355,-400.0,0.00019178,2]
[377904732,1754611836365,-2529.01,0.00019178,2]
[377904733,1754611836374,-400.0,0.00019178,2]
[377904734,1754611836385,-400.0,0.00019178,2]
[377904735,1754611836395,-804.22,0.00019178,2]
[377904736,1754611836404,-400.0,0.00019178,2]
[377904737,1754611836414,-479.46,0.00019178,2]
[377904738,1754611836423,-2136.47,0.00019178,2]
[377904739,1754611836433,-400.0,0.00019178,2]
[377904740,1754611836442,-1293.89,0.00019178,2]
[377904741,1754611836451,-825.57,0.00019178,2]
[377904742,1754611836461,-408.24,0.00019178,2]
[377904743,1754611836470,-400.0,0.00019178,2]
[377904744,1754611836480,-400.0,0.00019178,2]
[377904745,1754611836492,-400.0,0.00019178,2]
[377904746,1754611836502,-400.0,0.00019178,2]
[377904747,1754611836511,-400.0,0.00019178,2]
[377904748,1754611836521,-1012.96,0.00019178,2]
[377904749,1754611836530,-1110.14,0.00019178,2]
[377904750,1754611836540,-400.0,0.00019178,2]
[377904751,1754611836551,-621.83,0.00019178,2]
[377904752,1754611836561,-400.0,0.00019178,2]
[377904753,1754611836571,-748.68,0.00019178,2]
[377904754,1754611836580,-2476.64,0.00019178,2]
[377904755,1754611836590,-454.76,0.00019178,2]
[377904756,1754611836602,-1161.2,0.00019178,2]
[377904757,1754611836612,-1240.24,0.00019178,2]
[377904758,1754611836621,-473.59,0.00019178,2]
[377904759,1754611836632,-1250.9,0.00019178,2]
[377904760,1754611836641,-1860.89,0.00019178,2]
[377904761,1754611836651,-1322.43,0.00019178,2]
[377904762,1754611836660,-400.0,0.00019178,2]
[377904763,1754611836669,-400.0,0.00019178,2]
[377904764,1754611836679,-534.1,0.00019178,2]
[377904765,1754611836688,-821.8,0.00019178,2]
[377904766,1754611836698,-400.0,0.00019178,2]
[377904767,1754611836708,-489.48,0.00019178,2]
[377904768,1754611836719,-1787.2,0.00019178,2]
[377904769,1754611836730,-400.0,0.00019178,2]
[377904770,1754611836740,-1523.57,0.00019178,2]
[377904771,1754611836749,-400.0,0.00019178,2]
[377904772,1754611836760,-736.92,0.00019178,2]
[377904773,1754611836769,-1367.11,0.00019178,2]
[377904774,1754611836778,-544.11,0.00019178,2]
[377904775,1754611836788,-400.0,0.00019178,2]
[377904776,1754611836797,-1067.72,0.00019178,2]
[377904777,1754611836807,-1824.25,0.00019178,2]
[377904778,1754611836817,-596.16,0.00019178,2]
[377904779,1754611836826,-400.0,0.00019178,2]
[377904780,1754611836835,-154.20792559,0.00019178,2]
[377904781,1754611836844,-400.0,0.00019178,2]
[377904782,1754611836853,-991.53,0.00019178,2]
[377904783,1754611836863,-1561.24,0.00019178,2]
[377904784,1754611836873,-400.0,0.00019178,2]
[377904785,1754611836883,-671.54,0.00019178,2]
[377904786,1754611836893,-400.0,0.00019178,2]
[377904787,1754611836902,-855.07,0.00019178,2]
[377904788,1754611836912,-1638.56,0.00019178,2]
[377904789,1754611836921,-400.0,0.00019178,2]
[377904790,1754611836931,-492.92,0.00019178,2]
[377904791,1754611836941,-868.46,0.00019178,2]
[377904792,1754611836951,-400.0,0.00019178,2]
[377904793,1754611836962,-400.0,0.00019178,2]
[377904794,1754611836971,-509.29,0.00019178,2]
[377904795,1754611836981,-826.97,0.00019178,2]
[377904796,1754611836992,-825.14,0.00019178,2]
[377904797,1754611837001,-869.76,0.00019178,2]
[377904798,1754611837011,-1943.88,0.00019178,2]
[377904799,1754611837020,-450.59,0.00019178,2]
[377904800,1754611837029,-1100.44,0.00019178,2]
[377904801,1754611837038,-400.0,0.00019178,2]
[377904802,1754611837048,-1641.89,0.00019178,2]
[377904803,1754611837058,-405.74,0.00019178,2]
[377904804,1754611837068,-1139.38,0.00019178,2]
[377904805,1754611837326,-400.0,0.00019178,2]
[377904806,1754611837337,-1581.05,0.00019178,2]
[377904807,1754611837347,-1358.1,0.00019178,2]
[377904808,1754611837357,-400.0,0.00019178,2]
[377904809,1754611837367,-467.83,0.00019178,2]
[377904810,1754611837376,-1270.99,0.00019178,2]
[377904811,1754611837388,-205.89333716,0.00019178,2]
[377904812,1754611837397,-1087.75,0.00019178,2]
[377904813,1754611837407,-592.89,0.00019178,2]
[377904814,1754611837417,-1261.25,0.00019178,2]
[377904815,1754611837426,-2059.13,0.00019178,2]
[377904816,1754611837436,-1257.32,0.00019178,2]
[377904817,1754611837446,-400.0,0.00019178,2]
[377904818,1754611837455,-562.1,0.00019178,2]
[377904819,1754611837464,-400.0,0.00019178,2]
[377904820,1754611837474,-1024.22,0.00019178,2]
[377904821,1754611837487,-618.22,0.00019178,2]
[377904822,1754611837497,-400.0,0.00019178,2]
[377904823,1754611837507,-400.0,0.00019178,2]